bitfinex/quotes_SOLUSD_20220210
["timestamp","ask_amount","ask_price","bid_price","bid_amount"]
[1644508650058,32.00864711,112.01,111.87,46.96031458]
[1644508650266,6.37014864,111.99,111.88,88.67]
[1644508650457,2.50633467,112.02,111.89,48.31901999]
[1644508650865,30.28713467,112.03,111.9,10.67]
[1644508651066,4.73755621,112.02,111.9,10.67]
[1644508651264,4.465,112.01,111.9,10.67]
[1644508651459,32.74582412,112.0,111.9,10.67]
[1644508651660,9.51354997,111.99,111.87,10.67]
[1644508651867,2.50633467,111.99,111.87,10.67]
[1644508652058,5.04767314,111.99,111.87,10.67]
[1644508652259,35.25215879,112.0,111.87,100.84]
[1644508652466,4.466,111.99,111.88,44.74738665]
[1644508652660,5.63297163,111.98,111.88,44.74738665]
[1644508653069,19.03537163,111.98,111.88,44.74738665]
[1644508655064,19.03537163,111.98,111.87,10.67]
[1644508655264,13.4083,111.95,111.84,10.67]
[1644508655464,13.4083,111.95,111.83,10.67]
[1644508655667,2.23122154,111.94,111.83,10.67]
[1644508655867,4.468,111.93,111.83,10.67]
[1644508656068,32.060511,111.92,111.82,45.9328175]
[1644508656867,45.471811,111.92,111.82,45.9328175]
[1644508657065,45.471811,111.92,111.82,59.3425175]
[1644508657266,45.471811,111.92,111.82,70.0125175]
[1644508657467,45.471811,111.92,111.82,10.67]
[1644508658468,45.471811,111.92,111.82,46.66932464]
[1644508658968,45.471811,111.92,111.82,10.67]
[1644508659171,4.469,111.91,111.76,17.581]
[1644508659369,49.189,111.91,111.77,10.67]
[1644508659770,13.4156,111.89,111.77,10.67]
[1644508659971,24.20488475,111.89,111.74,37.77839951]
[1644508660177,16.62763477,111.88,111.72,10.67]
[1644508660372,4.472,111.87,111.72,10.67]
[1644508660570,16.05889644,111.87,111.72,10.67]
[1644508660771,2.23122154,111.86,111.72,10.67]
[1644508660973,4.472,111.85,111.72,10.67]
[1644508661172,32.060511,111.84,111.73,35.17767449]
[1644508661377,4.472,111.83,111.69,13.4246]
[1644508661576,4.472,111.83,111.68,10.67]
[1644508661773,31.76963477,111.83,111.66,0.024]
[1644508661972,41.60393477,111.82,111.65,10.67]
[1644508662173,4.474,111.81,111.66,0.024]
[1644508662373,13.02350629,111.81,111.66,44.47341514]
[1644508662574,10.79228475,111.81,111.66,44.47341514]
[1644508662774,10.79228475,111.81,111.66,55.14341514]
[1644508662972,10.79228475,111.81,111.66,55.11941514]
[1644508663577,10.79228475,111.81,111.66,55.36941514]
[1644508663775,24.22428475,111.81,111.66,68.79711514]
[1644508664079,19.75028475,111.81,111.66,55.36941514]
[1644508664275,13.432,111.81,111.66,55.36941514]
[1644508664485,23.4036,111.84,111.67,95.094]
[1644508664678,23.4036,111.84,111.68,10.67]
[1644508664876,13.4215,111.83,111.72,13.4208]
[1644508665076,13.4215,111.83,111.72,24.0908]
[1644508665277,35.09781227,111.82,111.73,39.85407855]
[1644508665476,22.9969,111.85,111.73,39.85407855]
[1644508665678,22.9969,111.85,111.73,50.52407855]
[1644508666276,22.9969,111.85,111.73,50.77407855]
[1644508666579,22.9969,111.85,111.76,36.29650595]
[1644508666984,13.4168,111.87,111.76,36.29650595]
[1644508667178,23.7309,111.89,111.77,10.67]
[1644508667380,23.7309,111.89,111.77,10.92]
[1644508667779,27.45,111.93,111.77,16.92]
[1644508667984,22.979,111.93,111.79,0.45]
[1644508668179,22.979,111.93,111.8,10.67]
[1644508668382,22.979,111.93,111.81,50.71120561]
[1644508668580,6.70122154,111.92,111.78,16.92]
[1644508668780,6.70122154,111.92,111.78,10.67]
[1644508668978,27.81211323,111.91,111.78,10.67]
[1644508669181,4.47,111.9,111.73,13.7247]
[1644508669382,4.47,111.9,111.73,6.0]
[1644508669383,82.66275192,111.9,111.73,6.0]
[1644508669582,14.39641323,111.89,111.76,44.4093302]
[1644508669780,14.39641323,111.89,111.73,16.67]
[1644508669781,4.471,111.88,111.73,10.67]
[1644508669980,4.471,111.88,111.7,16.67]
[1644508669981,29.27673869,111.88,111.7,16.67]
[1644508670179,60.54321323,111.87,111.7,10.67]
[1644508670385,4.472,111.86,111.7,16.67]
[1644508670601,23.9747,111.86,111.7,16.67]
[1644508670780,4.473,111.85,111.71,40.72857775]
[1644508671179,4.473,111.85,111.71,46.72857775]
[1644508671781,17.8962,111.85,111.73,41.76241039]
[1644508673683,17.8962,111.85,111.7,10.67]
[1644508673684,2.23122154,111.84,111.7,10.67]
[1644508673882,4.473,111.83,111.7,10.67]
[1644508674082,17.9009,111.83,111.7,10.67]
[1644508674283,4.77775368,111.83,111.65,0.024]
[1644508674485,89.69453477,111.82,111.66,43.63241145]
[1644508674683,15.144,111.81,111.66,43.63241145]
[1644508674983,45.90737346,111.81,111.66,43.63241145]
[1644508675183,57.10835192,111.81,111.66,43.63241145]
[1644508675383,42.97261323,111.81,111.67,10.67]
[1644508675584,45.20383477,111.81,111.68,40.240555]
[1644508676386,14.39641323,111.8,111.68,40.240555]
[1644508676585,17.9054,111.79,111.68,40.240555]
[1644508676786,20.38662154,111.79,111.68,40.240555]
[1644508677088,2.23122154,111.78,111.68,40.240555]
[1644508677287,4.475,111.77,111.65,10.694]
[1644508677486,4.475,111.77,111.65,10.67]
[1644508677687,13.4333,111.76,111.65,10.67]
[1644508678287,2.23122154,111.75,111.66,35.4830765]
[1644508678488,6.70622154,111.75,111.66,35.4830765]
[1644508679690,51.48962154,111.75,111.66,35.4830765]
[1644508679889,44.7834,111.75,111.66,35.4830765]
[1644508680293,2.23122154,111.74,111.66,35.4830765]
[1644508680492,13.4339,111.73,111.66,35.4830765]
[1644508681295,13.6839,111.73,111.66,35.4830765]
[1644508682197,13.4313,111.75,111.66,35.4830765]
[1644508682393,47.8546,111.78,111.66,46.4030765]
[1644508682695,47.8546,111.78,111.7,44.5443888]
[1644508683294,4.474,111.77,111.67,10.67]
[1644508683494,4.474,111.77,111.65,10.67]
[1644508683893,6.95522154,111.77,111.65,10.67]
[1644508684294,6.95522154,111.77,111.66,38.45408107]
[1644508684796,13.4323,111.76,111.66,38.45408107]
[1644508684995,4.475,111.75,111.66,38.45408107]
[1644508685293,6.70622154,111.75,111.66,38.45408107]
[1644508685894,4.475,111.75,111.66,38.45408107]
[1644508686299,4.476,111.76,111.66,38.45408107]
[1644508686495,61.2851,111.78,111.66,49.12408107]
[1644508686696,47.8546,111.78,111.66,49.12408107]
[1644508687300,4.475,111.77,111.67,90.17]
[1644508687497,142.3516,111.82,111.68,46.7421557]
[1644508687697,137.8766,111.82,111.69,90.17]
[1644508687897,137.8766,111.82,111.71,40.10969014]
[1644508687898,24.6702,111.82,111.71,40.10969014]
[1644508688098,24.6702,111.82,111.72,10.67]
[1644508688297,24.6702,111.82,111.73,45.24006851]
[1644508688498,24.6702,111.82,111.74,10.67]
[1644508688899,6.70422154,111.81,111.74,10.67]
[1644508689100,2.23122154,111.81,111.74,10.67]
[1644508689298,2.23122154,111.8,111.74,10.67]
[1644508689500,6.70422154,111.8,111.74,10.67]
[1644508689700,4.473,111.8,111.75,41.29342883]
[1644508689902,4.723,111.81,111.75,41.29342883]
[1644508690200,0.25,111.81,111.75,41.29342883]
[1644508690899,2.23122154,111.8,111.75,41.29342883]
[1644508691101,4.473,111.8,111.75,41.29342883]
[1644508691902,4.473,111.81,111.75,41.29342883]
[1644508692101,42.567,111.82,111.75,41.29342883]
[1644508692304,42.567,111.82,111.49,371.88637141]
[1644508692305,15.65832154,111.8,111.66,148.1621]
[1644508692902,15.65832154,111.8,111.67,10.67]
[1644508693124,18.1511,111.8,111.67,10.67]
[1644508693304,18.1511,111.8,111.68,44.57482283]
[1644508693502,18.1511,111.8,111.7,48.69674767]
[1644508693503,13.6771,111.8,111.7,48.69674767]
[1644508693707,4.474,111.79,111.7,48.69674767]
[1644508695007,4.474,111.81,111.7,72.79174767]
[1644508695203,4.474,111.81,111.7,59.36674767]
[1644508695404,62.5801,111.82,111.7,59.36674767]
[1644508695605,62.5801,111.82,111.7,155.53674767]
[1644508695802,62.5801,111.82,111.7,164.53274767]
[1644508696003,49.1551,111.82,111.7,158.53274767]
[1644508696204,49.1551,111.82,111.73,13.4216]
[1644508696403,49.1551,111.82,111.74,55.85290611]
[1644508697005,2.23122154,111.81,111.74,45.18290611]
[1644508697205,20.13052154,111.81,111.74,45.18290611]
[1644508697403,20.38052154,111.81,111.74,45.18290611]
[1644508697610,2.23122154,111.8,111.74,45.18290611]
[1644508697804,4.473,111.83,111.74,45.43290611]
[1644508698004,14.39641323,111.84,111.76,48.39192385]
[1644508698204,14.39641323,111.84,111.78,46.10901493]
[1644508698406,14.39641323,111.84,111.8,47.66917272]
[1644508699104,14.39641323,111.84,111.79,10.67]
[1644508700110,14.39641323,111.84,111.79,54.91520493]
[1644508700309,4.471,111.88,111.79,54.91520493]
[1644508700509,4.47,111.89,111.79,54.91520493]
[1644508700809,0.25,111.88,111.79,54.91520493]
[1644508701010,4.47,111.87,111.79,54.91520493]
[1644508701212,6.70122154,111.87,111.79,54.91520493]
[1644508701608,2.23122154,111.86,111.79,54.91520493]
[1644508702010,2.23122154,111.86,111.79,10.67]
[1644508702210,4.471,111.85,111.76,10.67]
[1644508702410,4.471,111.85,111.73,23.9188]
[1644508702611,2.23122154,111.84,111.73,23.9188]
[1644508702809,15.65222154,111.84,111.72,4.471]
[1644508703109,15.65222154,111.84,111.73,36.49545195]
[1644508703110,49.2264,111.83,111.73,36.49545195]
[1644508703409,2.23122154,111.82,111.73,36.49545195]
[1644508703910,2.23122154,111.82,111.72,4.471]
[1644508704109,4.473,111.81,111.72,4.471]
[1644508704310,63.63061323,111.81,111.68,10.67]
[1644508704509,2.23122154,111.8,111.68,10.67]
[1644508704712,6.70522154,111.8,111.68,10.67]
[1644508705010,21.10163477,111.8,111.66,0.024]
[1644508705220,15.66252154,111.79,111.66,0.024]
[1644508705410,4.475,111.78,111.65,37.5131]
[1644508705613,6.70622154,111.78,111.65,114.2516]
[1644508705911,62.6753,111.79,111.66,4.475]
[1644508706112,62.6753,111.79,111.68,36.85051602]
[1644508706311,4.474,111.78,111.68,36.85051602]
[1644508706711,13.4313,111.76,111.68,36.85051602]
[1644508707716,15.91252154,111.76,111.68,36.85051602]
[1644508708313,13.6813,111.76,111.68,36.85051602]
[1644508708915,13.4313,111.76,111.68,36.85051602]
[1644508709614,15.66252154,111.76,111.68,36.85051602]
[1644508709816,13.4313,111.76,111.68,36.85051602]
[1644508710618,13.4291,111.78,111.68,36.85051602]
[1644508710818,38.81341323,111.79,111.68,47.77051602]
[1644508711017,23.2622,111.82,111.68,53.77051602]
[1644508711217,6.70522154,111.83,111.68,53.77051602]
[1644508711218,4.474,111.81,111.68,53.77051602]
[1644508711419,499.53986454,111.85,111.69,6.17434959]
[1644508711620,4.473,111.84,111.7,47.92306277]
[1644508711826,21.10063477,111.84,111.7,47.92306277]
[1644508712020,65.85023477,111.84,111.72,13.4237]
[1644508712218,2.23122154,111.83,111.73,56.74619961]
[1644508712622,2.23122154,111.84,111.73,56.74619961]
[1644508712826,13.4221,111.83,111.73,56.74619961]
[1644508713023,504.01286454,111.85,111.73,56.99619961]
[1644508713224,499.53986454,111.85,111.73,62.99619961]
[1644508713423,51.70123467,111.9,111.73,62.99619961]
[1644508713622,2.50633467,111.89,111.73,62.99619961]
[1644508713824,61.3256,111.88,111.75,44.7198]
[1644508714025,4.472,111.87,111.76,50.94191064]
[1644508714225,4.472,111.87,111.77,13.4176]
[1644508714527,4.472,111.87,111.78,36.20754609]
[1644508715331,4.472,111.87,111.8,46.57119379]
[1644508715527,2.50633467,111.92,111.8,46.57119379]
[1644508715750,352.4667139,111.94,111.82,44.74240272]
[1644508715950,4.469,111.92,111.82,44.74240272]
[1644508716152,13.4108,111.92,111.84,47.89901027]
[1644508716351,352.4667139,111.94,111.84,61.30851027]
[1644508716352,347.9977139,111.94,111.84,61.30851027]
[1644508716551,347.9977139,111.94,111.85,10.67]
[1644508716753,23.5579,111.96,111.85,100.84]
[1644508717351,36.9642,111.96,111.85,10.67]
[1644508717551,28.4551332,111.95,111.85,10.67]
[1644508717753,4.468,111.94,111.82,10.67]
[1644508717953,18.86441323,111.94,111.82,10.67]
[1644508718352,32.27531323,111.94,111.82,10.67]
[1644508718751,9.92366255,111.93,111.83,43.24729973]
[1644508719250,9.92366255,111.93,111.84,10.67]
[1644508719451,14.39266255,111.93,111.85,44.57752435]
[1644508719651,23.33296255,111.93,111.84,10.67]
[1644508720554,13.6593,111.93,111.84,10.67]
[1644508720752,17.8754,111.95,111.84,10.92]
[1644508720953,23.5579,111.96,111.84,16.92]
[1644508721154,6.97433467,112.0,111.85,4.468]
[1644508721353,2.50633467,112.0,111.87,0.45]
[1644508721554,27.72569659,112.01,111.89,46.06609204]
[1644508721853,27.72569659,112.01,111.9,10.67]
[1644508722050,4.466,112.01,111.91,39.04038453]
[1644508722252,468.68315864,112.03,111.92,100.84]
[1644508722451,2.50633467,112.08,111.92,100.84]
[1644508722651,85.0966,112.09,111.92,16.67]
[1644508722652,4.464,112.05,111.92,16.67]
[1644508722852,4.464,112.08,111.92,61.5665]
[1644508723056,33.80997343,112.06,111.93,42.88296282]
[1644508723262,4.56882232,112.04,111.95,45.49196595]
[1644508723462,4.56882232,112.04,111.95,56.16196595]
[1644508724163,4.464,112.03,111.95,56.16196595]
[1644508724363,4.81882232,112.04,111.95,56.16196595]
[1644508724564,0.25,112.04,111.95,56.16196595]
[1644508725363,13.6485,112.04,111.95,56.16196595]
[1644508725666,28.25439181,112.04,111.95,56.16196595]
[1644508725865,28.25439181,112.04,111.95,10.67]
[1644508726063,2.23122154,112.03,111.95,10.67]
[1644508726264,13.4013,112.01,111.91,10.67]
[1644508726669,4.465,112.0,111.91,10.67]
[1644508726866,28.23690394,111.99,111.9,44.18295643]
[1644508727276,17.8674,112.0,111.9,44.18295643]
[1644508727467,13.4024,112.0,111.9,44.18295643]
[1644508727768,13.4024,112.0,111.91,10.67]
[1644508727966,76.0821,112.03,111.91,10.67]
[1644508728170,32.55688745,112.02,111.92,43.62012931]
[1644508728365,37.02188745,112.02,111.93,10.67]
[1644508728568,32.55688745,112.02,111.94,35.61378245]
[1644508728768,37.02188745,112.02,111.94,35.61378245]
[1644508729667,37.02188745,112.02,111.93,10.67]
[1644508730680,50.42208745,112.02,111.93,10.67]
[1644508730870,50.42208745,112.02,111.94,44.14665659]
[1644508731071,17.8652,112.02,111.94,44.14665659]
[1644508731272,71.6161,112.03,111.94,54.81665659]
[1644508731571,0.25,112.02,111.94,54.81665659]
[1644508732172,38.32102183,112.02,111.94,54.81665659]
[1644508732572,42.78602183,112.02,111.94,54.81665659]
[1644508733372,4.465,112.02,111.94,54.81665659]
[1644508733575,71.6161,112.03,111.94,54.81665659]
[1644508733975,71.6161,112.03,111.94,144.98665659]
[1644508734276,13.3976,112.04,111.94,144.98665659]
[1644508734574,31.1026472,112.05,111.94,158.63145659]
[1644508734776,13.3925,112.08,111.94,164.63145659]
[1644508735081,4.464,112.07,111.94,164.63145659]
[1644508735276,4.464,112.07,111.94,68.21145659]
[1644508735475,114.3,112.06,111.94,44.14665659]
[1644508735685,130.57950353,112.06,111.94,44.14665659]
[1644508735873,29.57540194,112.05,111.94,44.14665659]
[1644508736075,58.93611513,112.05,111.94,44.14665659]
[1644508736275,56.70489359,112.05,111.95,10.67]
[1644508736474,20.42901319,112.04,111.92,10.67]
[1644508736675,15.96401319,112.04,111.92,10.67]
[1644508736875,13.73279165,112.03,111.92,10.67]
[1644508737074,4.465,112.02,111.92,10.67]
[1644508737274,13.51839381,112.02,111.93,34.96856417]
[1644508737475,0.25,112.02,111.93,34.96856417]
[1644508737777,13.6495,112.02,111.93,34.96856417]
[1644508738575,55.67806091,112.02,111.93,34.96856417]
[1644508738776,20.34572154,112.02,111.93,34.96856417]
[1644508739176,0.25,112.02,111.93,34.96856417]
[1644508739477,13.3966,112.04,111.94,10.67]
[1644508739674,4.465,112.03,111.94,10.67]
[1644508739875,33.63463409,112.02,111.95,47.35133501]
[1644508740076,38.09863409,112.02,111.95,47.35133501]
[1644508740281,40.32985563,112.02,111.92,10.67]
[1644508740474,53.72865563,112.02,111.92,10.67]
[1644508740683,49.26465563,112.02,111.92,10.67]
[1644508741384,13.3988,112.02,111.93,40.44804738]
[1644508741581,2.23122154,112.04,111.94,10.67]
[1644508741778,4.465,112.08,111.94,10.67]
[1644508741976,697.40487016,112.11,111.95,6.14097629]
[1644508742176,710.56107016,112.11,111.96,100.84]
[1644508742377,710.56107016,112.11,111.97,45.14849751]
[1644508742378,29.97250035,112.1,111.97,45.14849751]
[1644508742580,29.97250035,112.1,111.99,36.66160948]
[1644508742779,8.4062954,112.07,111.99,36.66160948]
[1644508743181,4.463,112.09,111.99,36.66160948]
[1644508743378,60.87992632,112.1,111.99,36.66160948]
[1644508743581,13.73279165,112.1,111.99,36.66160948]
[1644508743778,13.73279165,112.1,111.99,50.05110948]
[1644508744179,13.73279165,112.1,112.0,10.67]
[1644508744379,4.90510793,112.09,112.01,37.71679627]
[1644508744579,9.36710793,112.09,112.01,37.71679627]
[1644508745080,13.3916,112.08,112.0,10.67]
[1644508745281,4.462,112.07,111.95,4.464]
[1644508745480,18.19479165,112.07,111.95,4.464]
[1644508745880,20.42601319,112.07,111.93,18.062]
[1644508746081,33.47368782,112.06,111.93,18.062]
[1644508746281,4.464,112.05,111.93,18.062]
[1644508746481,13.3983,112.02,111.93,31.4587]
[1644508747180,13.3983,112.02,111.94,35.79290885]
[1644508747581,13.3962,112.04,111.94,49.43910885]
[1644508748082,13.3962,112.04,111.94,59.85910885]
[1644508748282,13.3962,112.04,111.94,60.10910885]
[1644508748482,41.35834417,112.04,111.94,60.10910885]
[1644508748684,27.04853467,112.07,111.94,59.85910885]
[1644508748883,4.464,112.08,111.94,67.78608514]
[1644508749081,2.50633467,112.09,111.94,72.24908514]
[1644508749487,2.50633467,112.09,111.95,90.17]
[1644508749488,2.50633467,112.08,111.95,90.17]
[1644508749685,33.85357639,112.07,111.98,13.3908]
[1644508749883,17.8566,112.06,111.94,6.0]
[1644508750088,17.8566,112.06,111.96,6.0]
[1644508750089,20.36293467,112.06,111.96,6.0]
[1644508750287,2.50633467,112.06,111.96,10.92]
[1644508750485,46.564,112.07,111.96,101.09]
[1644508750887,46.564,112.07,111.96,107.09]
[1644508751087,2.50633467,112.08,111.98,13.3913]
[1644508751286,5.05144405,112.09,111.99,44.44567501]
[1644508751886,2.50633467,112.09,112.0,90.17]
[1644508752086,4.462,112.09,112.0,90.17]
[1644508752286,34.85111549,112.09,112.01,45.85645674]
[1644508752486,15.89533467,112.1,112.01,59.24485674]
[1644508752687,2.50633467,112.11,112.01,59.49485674]
[1644508752886,0.44809644,112.12,112.02,10.67]
[1644508753286,0.44809644,112.12,112.02,18.59697629]
[1644508753488,0.44809644,112.12,112.03,36.60998458]
[1644508753687,0.44809644,112.12,112.04,10.67]
[1644508753887,0.44809644,112.12,112.05,142.73121602]
[1644508754188,0.44809644,112.12,112.07,39.66480965]
[1644508754588,0.44809644,112.12,111.98,13.4522]
[1644508754787,0.44809644,112.12,112.02,10.461]
[1644508754988,0.44809644,112.12,112.04,13.3847]
[1644508755387,0.44809644,112.12,112.04,6.0]
[1644508755588,29.98207548,112.12,112.05,40.89133699]
[1644508755788,27.75085394,112.12,112.03,10.67]
[1644508755991,13.3872,112.11,112.03,30.0559]
[1644508756388,0.44809644,112.12,112.03,30.3059]
[1644508756589,0.44809644,112.12,112.03,24.0559]
[1644508756790,2.23122154,112.1,112.02,4.461]
[1644508756989,2.67931798,112.12,112.01,90.17]
[1644508757389,27.90669659,112.1,112.02,41.11307914]
[1644508759193,41.29519659,112.1,112.01,13.3877]
[1644508759392,4.462,112.09,111.99,13.3899]
[1644508759793,4.462,112.09,111.98,4.461]
[1644508760191,12.7033207,112.08,111.98,49.25932351]
[1644508760392,13.3936,112.06,111.98,49.25932351]
[1644508760593,32.36969659,112.05,111.98,49.25932351]
[1644508760795,27.90669659,112.05,111.95,13.395]
[1644508761098,27.90669659,112.05,111.93,18.062]
[1644508761099,30.13791813,112.05,111.93,18.062]
[1644508761297,30.13791813,112.05,111.93,7.392]
[1644508761896,30.13791813,112.05,111.94,36.52968635]
[1644508762099,4.464,112.04,111.94,36.52968635]
[1644508762396,2.23122154,112.03,111.94,36.52968635]
[1644508763896,2.48122154,112.03,111.94,36.52968635]
[1644508765602,15.87972154,112.03,111.94,36.52968635]
[1644508765801,2.48122154,112.03,111.94,36.52968635]
[1644508767900,2.23122154,112.02,111.93,7.392]
[1644508768100,6.69622154,112.02,111.93,7.392]
[1644508768503,2.23122154,112.01,111.93,7.392]
[1644508768704,4.465,112.0,111.93,7.392]
[1644508768903,10.47209916,111.99,111.93,7.392]
[1644508769704,6.69622154,112.0,111.93,7.392]
[1644508769904,2.23122154,112.0,111.93,7.392]
[1644508770807,1.27109462,112.03,111.94,10.67]
[1644508771004,4.465,112.04,111.94,10.67]
[1644508771207,5.73509462,112.05,111.93,13.392]
[1644508771403,4.464,112.03,111.94,6.0]
[1644508771605,5.73509462,112.04,111.93,13.392]
[1644508771803,36.80089665,112.03,111.93,13.392]
[1644508772026,39.03211819,112.03,111.93,7.392]
[1644508772226,39.03211819,112.03,111.93,26.7903]
[1644508772526,36.80089665,112.03,111.93,26.7903]
[1644508772926,2.23122154,112.02,111.93,26.7903]
[1644508773128,6.69622154,112.02,111.93,19.3983]
[1644508773327,4.715,112.02,111.93,19.3983]
[1644508774030,2.23122154,112.01,111.92,40.02041071]
[1644508774228,4.465,112.0,111.92,40.02041071]
[1644508774429,47.60669462,112.02,111.92,40.02041071]
[1644508774630,46.3356,112.02,111.92,40.02041071]
[1644508775228,4.465,112.01,111.92,40.02041071]
[1644508775433,46.3356,112.02,111.92,40.02041071]
[1644508777029,46.0856,112.02,111.92,40.02041071]
[1644508777231,46.0856,112.02,111.93,10.67]
[1644508777432,1.27109462,112.05,111.93,10.67]
[1644508777632,1.27109462,112.05,111.93,16.92]
[1644508777833,1.27109462,112.06,111.93,16.92]
[1644508778034,30.65949071,112.05,111.93,16.92]
[1644508778233,30.65949071,112.05,111.93,107.09]
[1644508778737,30.65949071,112.05,111.95,13.3959]
[1644508778937,35.12349071,112.05,111.96,46.38253916]
[1644508779135,4.464,112.04,111.96,46.38253916]
[1644508779335,35.12349071,112.05,111.96,136.55253916]
[1644508779535,1.27109462,112.07,111.97,10.67]
[1644508779737,1.27109462,112.08,111.99,13.3901]
[1644508780336,5.73409462,112.09,112.0,10.67]
[1644508780536,1.27109462,112.09,112.0,57.62160077]
[1644508780739,84.51019235,112.1,112.0,57.62160077]
[1644508781137,84.51019235,112.1,112.01,13.3869]
[1644508782037,1.27109462,112.09,111.99,10.67]
[1644508782235,5.73309462,112.09,111.96,10.67]
[1644508782437,1.27109462,112.07,111.96,10.67]
[1644508782738,4.463,112.06,111.96,10.67]
[1644508783036,5.38109802,112.06,111.97,36.99940005]
[1644508783337,0.91809802,112.06,111.97,61.06260005]
[1644508784038,0.91809802,112.06,111.97,24.0632]
[1644508784239,2.23122154,112.05,111.97,10.67]
[1644508784437,6.69422154,112.05,111.95,24.0652]
[1644508784740,6.94422154,112.05,111.95,24.0652]
[1644508784937,5.98409462,112.05,111.95,24.0652]
[1644508785138,0.25,112.05,111.95,24.0652]
[1644508785337,0.25,112.05,111.95,30.0652]
[1644508785538,0.25,112.05,111.96,90.17]
[1644508785739,1.27109462,112.07,111.99,13.3909]
[1644508785936,31.0098585,112.06,111.99,13.3909]
[1644508786140,1.27109462,112.07,111.99,13.3909]
[1644508786738,1.27109462,112.07,111.98,10.67]
[1644508786938,5.73409462,112.07,111.98,10.67]
[1644508787339,43.97644985,112.07,111.98,10.67]
[1644508787539,1.27109462,112.06,111.98,24.0628]
[1644508788839,5.73409462,112.06,111.98,24.0628]
[1644508789041,5.73409462,112.06,111.98,10.67]
[1644508789840,5.73409462,112.06,111.98,10.92]
[1644508790039,38.24235523,112.07,111.98,10.92]
[1644508790040,39.51344985,112.07,111.98,10.92]
[1644508790241,1.27109462,112.07,111.98,10.92]
[1644508790840,1.27109462,112.07,111.98,24.313]
[1644508791042,1.27109462,112.08,111.98,114.483]
[1644508791244,1.27109462,112.09,111.99,4.463]
[1644508791443,1.27109462,112.09,112.0,10.67]
[1644508791645,1.27109462,112.09,112.01,37.39339868]
[1644508791845,1.27109462,112.09,112.01,48.31339868]
[1644508792243,1.27109462,112.09,112.01,48.06339868]
[1644508792444,1.27109462,112.09,112.01,24.0585]
[1644508793446,1.27109462,112.09,112.01,60.99227771]
[1644508794045,1.27109462,112.08,112.01,60.99227771]
[1644508794248,1.27109462,112.09,112.01,60.99227771]
[1644508795248,1.27109462,112.09,112.01,61.24227771]
[1644508795449,1.27109462,112.1,112.02,90.17]
[1644508795647,1.27109462,112.1,112.03,24.0561]
[1644508796246,1.27109462,112.1,112.03,24.3061]
[1644508796449,1.27109462,112.11,112.03,24.0561]
[1644508796648,1.27109462,112.11,112.03,114.4761]
[1644508796852,32.69896913,112.12,112.03,24.3061]
[1644508797250,1.27109462,112.11,112.03,24.3061]
[1644508798551,32.69896913,112.12,112.03,24.3061]
[1644508799454,34.93019067,112.12,112.03,13.3861]
[1644508799653,34.93019067,112.12,112.02,13.3884]
[1644508799654,1.27109462,112.1,112.02,13.3884]
[1644508800153,1.27156352,112.1,112.02,13.3884]
[1644508800753,2.23122154,112.09,112.02,13.3884]
[1644508800954,7.39901768,112.08,112.01,50.32357771]
[1644508801356,9.63023922,112.08,112.01,50.32357771]
[1644508801554,7.39901768,112.08,112.01,50.32357771]
[1644508803455,1.27156352,112.09,112.01,50.32357771]
[1644508804459,31.55426193,112.08,112.01,50.32357771]
[1644508804857,1.27156352,112.09,112.01,50.32357771]
[1644508805060,1.27156352,112.09,112.02,10.67]
[1644508805259,1.27156352,112.09,112.02,24.3086]
[1644508805685,1.27156352,112.09,112.02,24.0586]
[1644508806058,29.52341246,112.08,112.02,24.0586]
[1644508806459,1.27156352,112.09,112.02,24.0586]
[1644508807359,31.69938324,112.08,112.02,24.0586]
[1644508809160,4.33925048,112.05,112.02,24.0586]
[1644508809564,4.58925048,112.05,112.02,24.0586]
[1644508809865,4.58925048,112.05,112.03,6.06439994]
[1644508810065,4.33925048,112.05,112.03,16.73439994]
[1644508810263,4.33925048,112.05,112.03,6.06439994]